Workbook

Sheet OUSim
A1: Time | B1: X | H1: std deviation, s | I1: 5
A2: 0 | B2: =stddev*NORMSINV(RAND()) -> 2.090046793 | H2: time const, tau | I2: 1
A3: =A2+delta -> 0.1 | B3: =shrinkfact*B2 + SQRT(noisevar)* NORMSINV(RAND()) -> 1.742945287 | H3: time btwn meas,Δ | I3: 0.1
A4: 0.2 | B4: 3.306292936
A5: 0.3 | B5: 2.280790696 | H5: c = exp(-Δ/tau) = | I5: =EXP(-delta/tau) -> 0.904837418
A6: 0.4 | B6: 5.101303333 | H6: q =s^2(1-c^2) = | I6: =stddev^2*(1-shrinkfact^2) -> 4.531731173
A7: 0.5 | B7: 3.266602968
A8: 0.6 | B8: 4.485089465
A9: 0.7 | B9: 0.7549605827
A10: 0.8 | B10: 1.229575306
A11: 0.9 | B11: 3.144727369
A12: 1 | B12: -1.643720048
A13: 1.1 | B13: 0.05157529767
A14: 1.2 | B14: -0.7654648518
A15: 1.3 | B15: -1.511868129
A16: 1.4 | B16: -2.160621516
A17: 1.5 | B17: -1.651823397
A18: 1.6 | B18: 0.4766011063
A19: 1.7 | B19: -3.720165084
A20: 1.8 | B20: -4.167344534
A21: 1.9 | B21: -2.74730309
A22: 2 | B22: -6.561405265
A23: 2.1 | B23: -3.564417991
A24: 2.2 | B24: -8.651861892
A25: 2.3 | B25: -8.690707633
A26: 2.4 | B26: -9.354973679
A27: 2.5 | B27: -7.181122918
A28: 2.6 | B28: -9.323713821
A29: 2.7 | B29: -7.01834972
A30: 2.8 | B30: -7.322953941
A31: 2.9 | B31: -8.210819222
A32: 3 | B32: -4.460103839
A33: 3.1 | B33: -3.840197188
A34: 3.2 | B34: -5.24355268
A35: 3.3 | B35: -3.150691884
A36: 3.4 | B36: -3.745597051
A37: 3.5 | B37: -0.4866805212
A38: 3.6 | B38: -0.241492219
A39: 3.7 | B39: -0.1938167839
A40: 3.8 | B40: 2.815049225
A41: 3.9 | B41: 1.216116442
A42: 4 | B42: 0.5745834437
A43: 4.1 | B43: 1.624414996
A44: 4.2 | B44: 2.963835556
A45: 4.3 | B45: 2.687225957
A46: 4.4 | B46: 2.726776903
A47: 4.5 | B47: 4.236747393
A48: 4.6 | B48: 4.843300736
A49: 4.7 | B49: 3.948997933
A50: 4.8 | B50: 9.59873385
A51: 4.9 | B51: 9.517569529
A52: 5 | B52: 9.951625418
A53: 5.1 | B53: 8.60649279
A54: 5.2 | B54: 8.426859471
A55: 5.3 | B55: 5.423651574
A56: 5.4 | B56: 7.60090861
A57: 5.5 | B57: 7.973327633
A58: 5.6 | B58: 8.71313952
A59: 5.7 | B59: 11.65627449
A60: 5.8 | B60: 9.444642763
A61: 5.9 | B61: 9.173852984
A62: 6 | B62: 6.605699423
A63: 6.1 | B63: 4.383231135
A64: 6.2 | B64: 6.246001007
A65: 6.3 | B65: 7.071967435
A66: 6.4 | B66: 7.98679751
A67: =A66+delta -> 6.5 | B67: =shrinkfact*B66 + SQRT(noisevar)* NORMSINV(RAND()) -> 7.617031098
A68: 6.6 | B68: 6.949548581
A69: 6.7 | B69: 6.064329564
A70: 6.8 | B70: 4.066094975
A71: 6.9 | B71: 3.211849454
A72: 7 | B72: 1.026212341
A73: 7.1 | B73: 2.016315123
A74: 7.2 | B74: 1.991928612
A75: 7.3 | B75: 1.156746105
A76: 7.4 | B76: 1.809492583
A77: 7.5 | B77: -0.6193584824
A78: 7.6 | B78: 0.3687452154
A79: 7.7 | B79: -0.7420162552
A80: 7.8 | B80: -2.593076684
A81: 7.9 | B81: 1.832509073
A82: 8 | B82: -0.4363477407
A83: 8.1 | B83: 1.890774269
A84: 8.2 | B84: 1.193309619
A85: 8.3 | B85: 4.626916566
A86: 8.4 | B86: 2.796591498
A87: 8.5 | B87: 1.586933116
A88: 8.6 | B88: 4.123052526
A89: 8.7 | B89: 4.851998061
A90: 8.8 | B90: 4.58654472
A91: 8.9 | B91: 6.683070131
A92: 9 | B92: 3.141035862
A93: 9.1 | B93: -0.6770565513
A94: 9.2 | B94: -3.04955248
A95: 9.3 | B95: -4.527623463
A96: 9.4 | B96: -5.092303372
A97: 9.5 | B97: -2.699009121
A98: 9.6 | B98: 0.5970921335
A99: 9.7 | B99: 0.4597035768
A100: 9.8 | B100: 0.9943171975
A101: 9.9 | B101: -0.9523589641
A102: 10 | B102: -0.509840822
A103: 10.1 | B103: -0.5073237127
A104: 10.2 | B104: 2.863509381
A105: 10.3 | B105: 3.189341777
A106: 10.4 | B106: 4.011763422
A107: 10.5 | B107: 5.906684416
A108: 10.6 | B108: 5.199320075
A109: 10.7 | B109: 5.77505078
A110: 10.8 | B110: 0.429987476
A111: 10.9 | B111: -2.185656517
A112: 11 | B112: -0.3048175432
A113: 11.1 | B113: 0.1053265538
A114: 11.2 | B114: 2.054751506
A115: 11.3 | B115: 2.326683592
A116: 11.4 | B116: 0.09460730601
A117: 11.5 | B117: 1.813502657
A118: 11.6 | B118: 6.092382381
A119: 11.7 | B119: 5.940810559
A120: 11.8 | B120: 4.343701206
A121: 11.9 | B121: 6.255474775
A122: 12 | B122: 3.88941755
A123: 12.1 | B123: 2.846400895
A124: 12.2 | B124: 2.448642955
A125: 12.3 | B125: 1.612297684
A126: 12.4 | B126: 3.916383072
A127: 12.5 | B127: 5.088890429
A128: 12.6 | B128: 6.087077472
A129: 12.7 | B129: 3.64882227
A130: 12.8 | B130: -0.5084032641
A131: =A130+delta -> 12.9 | B131: =shrinkfact*B130 + SQRT(noisevar)* NORMSINV(RAND()) -> -1.973215718
A132: 13 | B132: -2.985819313
A133: 13.1 | B133: -2.845190845
A134: 13.2 | B134: -4.860976262
A135: 13.3 | B135: -0.9482548701
A136: 13.4 | B136: -0.1953082662
A137: 13.5 | B137: -1.779357348
A138: 13.6 | B138: -7.381005613
A139: 13.7 | B139: -5.336520955
A140: 13.8 | B140: -7.297109557
A141: 13.9 | B141: -5.336604308
A142: 14 | B142: -3.438521834
A143: 14.1 | B143: -3.451633291
A144: 14.2 | B144: -3.20141738
A145: 14.3 | B145: -1.331529492
A146: 14.4 | B146: -1.871450028
A147: 14.5 | B147: -1.948347479
A148: 14.6 | B148: -0.4535824884
A149: 14.7 | B149: 0.01130351244
A150: 14.8 | B150: -2.461011265
A151: 14.9 | B151: -1.202012914
A152: 15 | B152: 0.6495608762
A153: 15.1 | B153: -1.167954962
A154: 15.2 | B154: -3.058099041
A155: 15.3 | B155: -5.551858184
A156: 15.4 | B156: -7.029752245
A157: 15.5 | B157: -4.695602686
A158: 15.6 | B158: -7.894987089
A159: 15.7 | B159: -8.888603916
A160: 15.8 | B160: -8.704293635
A161: 15.9 | B161: -6.290651409
A162: 16 | B162: -4.477133782
A163: 16.1 | B163: -5.095559208
A164: 16.2 | B164: -5.343970849
A165: 16.3 | B165: -5.562484143
A166: 16.4 | B166: -2.162750737
A167: 16.5 | B167: -3.381445832
A168: 16.6 | B168: -3.694026253
A169: 16.7 | B169: -5.583022383
A170: 16.8 | B170: -6.022261109
A171: 16.9 | B171: -5.119835794
A172: 17 | B172: -3.62686073
A173: 17.1 | B173: -5.784780394
A174: 17.2 | B174: -9.279279627
A175: 17.3 | B175: -6.88317187
A176: 17.4 | B176: -8.341704734
A177: 17.5 | B177: -7.192655535
A178: 17.6 | B178: -7.67630356
A179: 17.7 | B179: -8.500599779
A180: 17.8 | B180: -11.02412515
A181: 17.9 | B181: -9.760818293
A182: 18 | B182: -10.29045024
A183: 18.1 | B183: -9.925425043
A184: 18.2 | B184: -11.25224874
A185: 18.3 | B185: -12.72366245
A186: 18.4 | B186: -9.811178848
A187: 18.5 | B187: -11.09822079
A188: 18.6 | B188: -11.41067396
A189: 18.7 | B189: -12.97262343
A190: 18.8 | B190: -11.98712165
A191: 18.9 | B191: -9.974140741
A192: 19 | B192: -7.712220546
A193: 19.1 | B193: -7.089310366
A194: 19.2 | B194: -7.131542626
A195: =A194+delta -> 19.3 | B195: =shrinkfact*B194 + SQRT(noisevar)* NORMSINV(RAND()) -> -5.729884879
A196: 19.4 | B196: -3.551792262
A197: 19.5 | B197: -3.806889997
A198: 19.6 | B198: -1.080605727
A199: 19.7 | B199: -2.773140631
A200: 19.8 | B200: -1.772720595
... 42 more rows

Sheet IEKF
A1: H | B1: K | C1: mu(+) | D1: sig(+) | H1: mu(-) | I1: 1
C2: =mu -> 1 | D2: =sigma -> 0.5 | H2: sig(-) | I2: 0.5
A3: =COS(C2) -> 0.5403023059 | B3: =A3*sigma/(A3*A3*sigma+$I$4) -> 1.535269951 | C3: =mu+B3*($I$5-SIN(mu)-$I$3) -> 0.4757498579 | D3: =(1-A3*B3)*sigma -> 0.08524505268 | H3: muV | I3: 0.1
A4: =COS(C3) -> 0.8889495328 | B4: 1.045538505 | C4: 0.6429789371 | D4: 0.03528451728 | H4: R | I4: 0.03
A5: =COS(C4) -> 0.800313194 | B5: 1.142486529 | C5: 0.6098739999 | D5: 0.04282647858 | H5: Z | I5: 0.6
A6: 0.8197201927 | B6: 1.119926299 | C6: 0.6175776638 | D6: 0.04098689927
A7: 0.81528353 | B7: 1.125014339 | C7: 0.6158402457 | D7: 0.04139716913
A8: 0.8162883717 | B8: 1.123858403 | C8: 0.6162349643 | D8: 0.04130372704
A9: 0.8160603011 | B9: 1.124120584 | C9: 0.6161454371 | D9: 0.04132490881
A10: 0.8161120416 | B10: 1.124061096 | C10: 0.6161657506 | D10: 0.04132010209
A11: 0.8161003023 | B11: 1.124074593 | C11: 0.6161611419 | D11: 0.0413211926
A12: 0.8161029657 | B12: 1.12407153 | C12: 0.6161621875 | D12: 0.04132094518
A13: 0.8161023615 | B13: 1.124072225 | C13: 0.6161619503 | D13: 0.04132100132

Sheet KFSim
A1: time | B1: mu(-) | C1: sig(-) | D1: Err(-) | E1: X (truth) | F1: z | G1: d_shock | H1: k-gain | I1: mu(+) | J1: sig(+) | K1: Err(+) | M1: R (or rr) | N1: 1 | O1: =SQRT(N1) -> 1 | P1: sqrt(R)
A2: 1 | B2: 1 | C2: 100 | D2: =(E2-B2)*(E2-B2)/C2 -> 0.2932616385 | E2: =B2+SQRT(C2)*NORMSINV(RAND()) -> 6.415363686 | F2: =m_func(E2)+sqt_r*NORMSINV(RAND()) -> 18.00559661 | G2: =(F2-m_func(B2))*(F2-m_func(B2))/(C2*d_func(B2)*d_func(B2)+rr) -> 0.3020527601 | H2: =C2*d_func(B2)/(C2*d_func(B2)*d_func(B2)+rr) -> 0.4987531172 | I2: =B2+H2*(F2-m_func(B2)) -> 6.489075617 | J2: =(1-H2*d_func(B2))*C2 -> 0.2493765586 | K2: =(E2-I2)*(E2-I2)/J2 -> 0.02178812989 | M2: Q (or qq) | N2: 1 | O2: =SQRT(N2) -> 1 | P2: sqrt(Q)
A3: =A2+1 -> 2 | B3: =I2+mu_w -> 6.589075617 | C3: =J2+qq -> 1.249376559 | D3: =(E3-B3)*(E3-B3)/C3 -> 0.3919104029 | E3: =E2+mu_w+sqt_q*NORMSINV(RAND()) -> 5.889330185 | F3: =m_func(E3)+sqt_r*NORMSINV(RAND()) -> 16.9861855 | G3: =(F3-m_func(B3))*(F3-m_func(B3))/(C3*d_func(B3)*d_func(B3)+rr) -> 0.2368955125 | H3: =C3*d_func(B3)/(C3*d_func(B3)*d_func(B3)+rr) -> 0.4166320166 | I3: =B3+H3*(F3-m_func(B3)) -> 6.092464529 | J3: =(1-H3*d_func(B3))*C3 -> 0.2083160083 | K3: =(E3-I3)*(E3-I3)/J3 -> 0.1980815702 | M3: mu_W | N3: 0.1
A4: =A3+1 -> 3 | B4: =I3+mu_w -> 6.192464529 | C4: =J3+qq -> 1.208316008 | D4: 0.2432113992 | E4: =E3+mu_w+sqt_q*NORMSINV(RAND()) -> 6.73456805 | F4: 17.18887089 | G4: =(F4-m_func(B4))*(F4-m_func(B4))/(C4*d_func(B4)*d_func(B4)+rr) -> 0.006589587933 | H4: =C4*d_func(B4)/(C4*d_func(B4)*d_func(B4)+rr) -> 0.414284696 | I4: =B4+H4*(F4-m_func(B4)) -> 6.11124063 | J4: 0.207142348 | K4: =(E4-I4)*(E4-I4)/J4 -> 1.875700824
A5: 4 | B5: 6.21124063 | C5: 1.207142348 | D5: 0.746959991 | E5: 7.160812658 | F5: 18.86859844 | G5: 0.3587938579 | H5: 0.4142156563 | I5: 6.810245007 | J5: 0.2071078282 | K5: 0.5933994844
A6: 5 | B6: 6.910245007 | C6: 1.207107828 | D6: 0.352923284 | E6: 6.257545643 | F6: 16.96128707 | G6: 0.5930644787 | H6: 0.414213624 | I6: 6.140137818 | J6: 0.207106812 | K6: 0.06655791383
A7: 6 | B7: 6.240137818 | C7: 1.207106812 | D7: 0.0004013857666 | E7: 6.262149531 | F7: 18.51824666 | G7: 0.1848498384 | H7: 0.4142135642 | I7: 6.670079493 | J7: 0.2071067821 | K7: 0.803483365
A8: 7 | B8: 6.770079493 | C8: 1.207106782 | D8: 0.6132832946 | E8: 5.909673529 | F8: 16.38589922 | G8: 0.7962414272 | H8: 0.4142135624 | I8: 5.877755882 | J8: 0.2071067812 | K8: 0.004918893402
A9: 8 | B9: 5.977755882 | C9: 1.207106781 | D9: 1.056382334 | E9: 4.848523275 | F9: 15.23269588 | G9: 0.509244519 | H9: 0.4142135624 | I9: 5.264142177 | J9: 0.2071067812 | K9: 0.8340580198
A10: 9 | B10: 5.364142177 | C10: 1.207106781 | D10: 1.004765579 | E10: 4.262843243 | F10: 13.62550711 | G10: 0.7586390029 | H10: 0.4142135624 | I10: 4.493143324 | J10: 0.2071067812 | K10: 0.2560907329
A11: 10 | B11: 4.593143324 | C11: 1.207106781 | D11: 0.4633004708 | E11: 3.84531103 | F11: 12.8057862 | G11: 0.3269804105 | H11: 0.4142135624 | I11: 4.021321314 | J11: 0.2071067812 | K11: 0.1495828389
A12: 11 | B12: 4.121321314 | C12: 1.207106781 | D12: 0.1356202043 | E12: 3.716712777 | F12: 14.01559297 | G12: 0.1025065973 | H12: 0.4142135624 | I12: 4.441487829 | J12: 0.2071067812 | K12: 2.536367341
A13: 12 | B13: 4.541487829 | C13: 1.207106781 | D13: 0.1664363102 | E13: 4.093261995 | F13: 13.66479655 | G13: 0.03000359432 | H13: 0.4142135624 | I13: 4.368272373 | J13: 0.2071067812 | K13: 0.3651773622
A14: 13 | B14: 4.468272373 | C14: 1.207106781 | D14: 3.954805862 | E14: 6.653191816 | F14: 18.29881446 | G14: 3.264928362 | H14: 0.4142135624 | I14: 6.27518365 | J14: 0.2071067812 | K14: 0.6899347928
A15: 14 | B15: 6.37518365 | C15: 1.207106781 | D15: 0.6836551073 | E15: 7.283613458 | F15: 20.57958842 | G15: 1.373353733 | H15: 0.4142135624 | I15: 7.547085409 | J15: 0.2071067812 | K15: 0.3351771902
A16: 15 | B16: 7.647085409 | C16: 1.207106781 | D16: 0.03357942508 | E16: 7.848415863 | F16: 21.89024508 | G16: 0.4370738434 | H16: 0.4142135624 | I16: 8.308201014 | J16: 0.2071067812 | K16: 1.020741011
A17: 16 | B17: 8.408201014 | C17: 1.207106781 | D17: 0.5157940175 | E17: 7.619139257 | F17: 21.34498033 | G17: 0.03813008454 | H17: 0.4142135624 | I17: 8.212931752 | J17: 0.2071067812 | K17: 1.702452838
A18: 17 | B18: 8.312931752 | C18: 1.207106781 | D18: 2.915624 | E18: 6.436906832 | F18: 16.38423882 | G18: 4.713901143 | H18: 0.4142135624 | I18: 6.141779721 | J18: 0.2071067812 | K18: 0.4205560592
A19: 18 | B19: 6.241779721 | C19: 1.207106781 | D19: 3.759071739 | E19: 8.371944265 | F19: 21.12791211 | G19: 2.278711917 | H19: 0.4142135624 | I19: 7.75132002 | J19: 0.2071067812 | K19: 1.859786779
A20: 19 | B20: 7.85132002 | C20: 1.207106781 | D20: 0.7833688803 | E20: 8.823744767 | F20: 22.6436461 | G20: 0.6464015819 | H20: 0.4142135624 | I20: 8.655311054 | J20: 0.2071067812 | K20: 0.1369820703
A21: 20 | B21: 8.755311054 | C21: 1.207106781 | D21: 0.665368805 | E21: 7.859112863 | F21: 20.94264651 | G21: 0.4218200588 | H21: 0.4142135624 | I21: 8.105834296 | J21: 0.2071067812 | K21: 0.2939134345
A22: 21 | B22: 8.205834296 | C22: 1.207106781 | D22: 0.1855134692 | E22: 7.732617045 | F22: 19.44191901 | G22: 0.665687903 | H22: 0.4142135624 | I22: 7.389937303 | J22: 0.2071067812 | K22: 0.5669993269
A23: 22 | B23: 7.489937303 | C23: 1.207106781 | D23: 3.610056623 | E23: 9.57745349 | F23: 24.8870922 | G23: 4.131609435 | H23: 0.4142135624 | I23: 9.522573384 | J23: 0.2071067812 | K23: 0.01454238274
A24: 23 | B24: 9.622573384 | C24: 1.207106781 | D24: 0.02020251749 | E24: 9.778735466 | F24: 25.29870371 | G24: 0.1904428417 | H24: 0.4142135624 | I24: 10.05897096 | J24: 0.2071067812 | K24: 0.3791857027
A25: 24 | B25: 10.15897096 | C25: 1.207106781 | D25: 0.3579743637 | E25: 10.8163242 | F25: 29.19333009 | G25: 2.576790131 | H25: 0.4142135624 | I25: 11.7642093 | J25: 0.2071067812 | K25: 4.33827497
A26: 25 | B26: 11.8642093 | C26: 1.207106781 | D26: 0.4247116482 | E26: 11.14819791 | F26: 28.32736677 | G26: 0.02759622183 | H26: 0.4142135624 | I26: 11.69808819 | J26: 0.2071067812 | K26: 1.460016533
A27: 26 | B27: 11.79808819 | C27: 1.207106781 | D27: 1.891058256 | E27: 10.28722445 | F27: 25.57721799 | G27: 1.563734017 | H27: 0.4142135624 | I27: 10.54759468 | J27: 0.2071067812 | K27: 0.3273319073
A28: 27 | B28: 10.64759468 | C28: 1.207106781 | D28: 0.8347101403 | E28: 9.64380971 | F28: 25.61020527 | G28: 0.08050254272 | H28: 0.4142135624 | I28: 10.36386498 | J28: 0.2071067812 | K28: 2.503440941
A29: 28 | B29: 10.46386498 | C29: 1.207106781 | D29: 0.8863972367 | E29: 11.49826148 | F29: 25.06085376 | G29: 0.1289326159 | H29: 0.4142135624 | I29: 10.1047931 | J29: 0.2071067812 | K29: 9.375618283
A30: 29 | B30: 10.2047931 | C30: 1.207106781 | D30: 8.812029545 | E30: 13.46624379 | F30: 31.48033942 | G30: 6.323154399 | H30: 0.4142135624 | I30: 12.71938142 | J30: 0.2071067812 | K30: 2.693313112
A31: 30 | B31: 12.81938142 | C31: 1.207106781 | D31: 1.891623768 | E31: 14.33047105 | F31: 34.11945445 | G31: 2.078642128 | H31: 0.4142135624 | I31: 14.26113109 | J31: 0.2071067812 | K31: 0.02321522046
A32: 31 | B32: 14.36113109 | C32: 1.207106781 | D32: 0.1426095058 | E32: 13.94622761 | F32: 31.09516758 | G32: 1.184131828 | H32: 0.4142135624 | I32: 13.27295288 | J32: 0.2071067812 | K32: 2.188720525
A33: 32 | B33: 13.37295288 | C33: 1.207106781 | D33: 0.006685675979 | E33: 13.28311789 | F33: 31.58589366 | G33: 0.004392929575 | H33: 0.4142135624 | I33: 13.3066737 | J33: 0.2071067812 | K33: 0.002679178657
A34: 33 | B34: 13.4066737 | C34: 1.207106781 | D34: 0.01648274417 | E34: 13.26561898 | F34: 31.750473 | G34: 0.0006782600755 | H34: 0.4142135624 | I34: 13.38063027 | J34: 0.2071067812 | K34: 0.06386848398
A35: 34 | B35: 13.48063027 | C35: 1.207106781 | D35: 0.8692049428 | E35: 12.45631431 | F35: 29.56057634 | G35: 0.9888233176 | H35: 0.4142135624 | I35: 12.48623432 | J35: 0.2071067812 | K35: 0.00432243924
A36: 35 | B36: 12.58623432 | C36: 1.207106781 | D36: 0.6713438843 | E36: 11.68602114 | F36: 27.53783083 | G36: 1.1909416 | H36: 0.4142135624 | I36: 11.49493161 | J36: 0.2071067812 | K36: 0.1763110339
A37: 36 | B37: 11.59493161 | C37: 1.207106781 | D37: 5.780001655 | E37: 14.23634774 | F37: 34.13280994 | G37: 6.059716458 | H37: 0.4142135624 | I37: 14.05658074 | J37: 0.2071067812 | K37: 0.1560362929
A38: 37 | B38: 14.15658074 | C38: 1.207106781 | D38: 1.369699441 | E38: 15.44241646 | F38: 36.40469786 | G38: 1.639824425 | H38: 0.4142135624 | I38: 15.43713704 | J38: 0.2071067812 | K38: 0.0001345791889
A39: 38 | B39: 15.53713704 | C39: 1.207106781 | D39: 4.113832494 | E39: 17.76555242 | F39: 41.11216947 | G39: 4.354586498 | H39: 0.4142135624 | I39: 17.62390164 | J39: 0.2071067812 | K39: 0.09688211481
A40: 39 | B40: 17.72390164 | C40: 1.207106781 | D40: 0.4217297521 | E40: 18.43739505 | F40: 42.53479739 | G40: 0.7472932803 | H40: 0.4142135624 | I40: 18.5883629 | J40: 0.2071067812 | K40: 0.1100461024
A41: 40 | B41: 18.6883629 | C41: 1.207106781 | D41: 0.3889782192 | E41: 18.00313429 | F41: 40.4860004 | G41: 0.6133460159 | H41: 0.4142135624 | I41: 17.9051988 | J41: 0.2071067812 | K41: 0.04631119003
A42: 41 | B42: 18.0051988 | C42: 1.207106781 | D42: 2.128023619 | E42: 19.60793138 | F42: 43.43253643 | G42: 1.006576288 | H42: 0.4142135624 | I42: 19.00848155 | J42: 0.2071067812 | K42: 1.735047478
A43: 42 | B43: 19.10848155 | C43: 1.207106781 | D43: 1.273191391 | E43: 20.34819038 | F43: 47.94685977 | G43: 3.838415052 | H43: 0.4142135624 | I43: 21.0676689 | J43: 0.2071067812 | K43: 2.499432141
A44: 43 | B44: 21.1676689 | C44: 1.207106781 | D44: 0.02046330832 | E44: 21.32483568 | F44: 47.73072818 | G44: 0.02682259783 | H44: 0.4142135624 | I44: 21.33144496 | J44: 0.2071067812 | K44: 0.0002109178591
A45: 44 | B45: 21.43144496 | C45: 1.207106781 | D45: 2.310552766 | E45: 23.10150002 | F45: 51.29664591 | G45: 2.022960907 | H45: 0.4142135624 | I45: 22.85375326 | J45: 0.2071067812 | K45: 0.2963614078
A46: 45 | B46: 22.95375326 | C46: 1.207106781 | D46: 0.3796809898 | E46: 23.63074329 | F46: 51.00005109 | G46: 0.001469435289 | H46: 0.4142135624 | I46: 22.99208647 | J46: 0.2071067812 | K46: 1.969431051
A47: 46 | B47: 23.09208647 | C47: 1.207106781 | D47: 0.2930692206 | E47: 23.68686866 | F47: 55.43624669 | G47: 3.102060079 | H47: 0.4142135624 | I47: 24.85335309 | J47: 0.2071067812 | K47: 6.569972838
A48: 47 | B48: 24.95335309 | C48: 1.207106781 | D48: 6.57839516 | E48: 22.13540607 | F48: 50.2516273 | G48: 3.717942921 | H48: 0.4142135624 | I48: 23.02515628 | J48: 0.2071067812 | K48: 3.822450619
A49: 48 | B49: 23.12515628 | C49: 1.207106781 | D49: 0.5908915584 | E49: 22.28060361 | F49: 50.07325013 | G49: 0.2377100947 | H49: 0.4142135624 | I49: 22.63760106 | J49: 0.2071067812 | K49: 0.6153693991
A50: 49 | B50: 22.73760106 | C50: 1.207106781 | D50: 0.2516052527 | E50: 23.28870396 | F50: 49.88601031 | G50: 0.05956100678 | H50: 0.4142135624 | I50: 22.49354982 | J50: 0.2071067812 | K50: 3.052870119
A51: 50 | B51: 22.59354982 | C51: 1.207106781 | D51: 3.084359351 | E51: 24.52309668 | F51: 53.99898119 | G51: 2.493029533 | H51: 0.4142135624 | I51: 24.17248286 | J51: 0.2071067812 | K51: 0.5935588069
A52: 51 | B52: 24.27248286 | C52: 1.207106781 | D52: 0.0173042779 | E52: 24.41701006 | F52: 54.39483244 | G52: 0.1239225317 | H52: 0.4142135624 | I52: 24.62450918 | J52: 0.2071067812 | K52: 0.2078922094
A53: 52 | B53: 24.72450918 | C53: 1.207106781 | D53: 0.03529179138 | E53: 24.93090918 | F53: 56.59572585 | G53: 0.7906683789 | H53: 0.4142135624 | I53: 25.61370453 | J53: 0.2071067812 | K53: 2.251058567
A54: 53 | B54: 25.71370453 | C54: 1.207106781 | D54: 0.004013462073 | E54: 25.78330825 | F54: 57.57482971 | G54: 0.2258884064 | H54: 0.4142135624 | I54: 26.18898172 | J54: 0.2071067812 | K54: 0.7946189194
A55: 54 | B55: 26.28898172 | C55: 1.207106781 | D55: 0.4367280311 | E55: 25.56291191 | F55: 55.47783677 | G55: 0.7567276695 | H55: 0.4142135624 | I55: 25.41908077 | J55: 0.2071067812 | K55: 0.09988759443
A56: 55 | B56: 25.51908077 | C56: 1.207106781 | D56: 0.8776169437 | E56: 24.48982018 | F56: 53.82866358 | G56: 0.8375983989 | H56: 0.4142135624 | I56: 24.60387675 | J56: 0.2071067812 | K56: 0.06281253182
A57: 56 | B57: 24.70387675 | C57: 1.207106781 | D57: 4.446122351 | E57: 22.38721008 | F57: 49.05933983 | G57: 4.907932829 | H57: 0.4142135624 | I57: 22.48849127 | J57: 0.2071067812 | K57: 0.0495294183
A58: 57 | B58: 22.58849127 | C58: 1.207106781 | D58: 0.7361667484 | E58: 21.64581854 | F58: 47.86371651 | G58: 0.9181207178 | H58: 0.4142135624 | I58: 21.63030511 | J58: 0.2071067812 | K58: 0.00116204089
A59: 58 | B59: 21.73030511 | C59: 1.207106781 | D59: 0.04648757842 | E59: 21.49341807 | F59: 47.15090848 | G59: 0.2943021533 | H59: 0.4142135624 | I59: 21.18780888 | J59: 0.2071067812 | K59: 0.4509604711
A60: 59 | B60: 21.28780888 | C60: 1.207106781 | D60: 0.1481563901 | E60: 20.86491341 | F60: 45.10706607 | G60: 1.045521781 | H60: 0.4142135624 | I60: 20.26530129 | J60: 0.2071067812 | K60: 1.735987067
A61: 60 | B61: 20.36530129 | C61: 1.207106781 | D61: 0.4938152421 | E61: 21.13736847 | F61: 46.71548721 | G61: 0.1664253004 | H61: 0.4142135624 | I61: 20.77325386 | J61: 0.2071067812 | K61: 0.6401501972
A62: 61 | B62: 20.87325386 | C62: 1.207106781 | D62: 0.02177000716 | E62: 21.035361 | F62: 46.41956804 | G62: 0.01833934855 | H62: 0.4142135624 | I62: 20.73783101 | J62: 0.2071067812 | K62: 0.42743213
A63: 62 | B63: 20.83783101 | C63: 1.207106781 | D63: 0.8244114723 | E63: 21.83540441 | F63: 50.9391557 | G63: 3.118745072 | H63: 0.4142135624 | I63: 22.60382792 | J63: 0.2071067812 | K63: 2.851064019
A64: 63 | B64: 22.70382792 | C64: 1.207106781 | D64: 1.660493315 | E64: 21.28806214 | F64: 47.91506863 | G64: 1.065980726 | H64: 0.4142135624 | I64: 21.67136449 | J64: 0.2071067812 | K64: 0.7093958625
A65: 64 | B65: 21.77136449 | C65: 1.207106781 | D65: 0.2002319067 | E65: 21.27973323 | F65: 48.06227971 | G65: 0.03960442471 | H65: 0.4142135624 | I65: 21.57235589 | J65: 0.2071067812 | K65: 0.4134486372
A66: 65 | B66: 21.67235589 | C66: 1.207106781 | D66: 2.057459318 | E66: 20.09642026 | F66: 46.66483499 | G66: 0.4841762509 | H66: 0.4142135624 | I66: 20.97652814 | J66: 0.2071067812 | K66: 3.74005079
A67: 66 | B67: 21.07652814 | C67: 1.207106781 | D67: =(E67-B67)*(E67-B67)/C67 -> 0.008011134688 | E67: 20.97819048 | F67: =m_func(E67)+sqt_r*NORMSINV(RAND()) -> 46.54528317 | G67: 0.06337698723 | H67: 0.4142135624 | I67: 20.82478028 | J67: =(1-H67*d_func(B67))*C67 -> 0.2071067812 | K67: 0.1136355423
A68: =A67+1 -> 67 | B68: =I67+mu_w -> 20.92478028 | C68: =J67+qq -> 1.207106781 | D68: 3.409696818 | E68: =E67+mu_w+sqt_q*NORMSINV(RAND()) -> 22.95354053 | F68: 50.9673587 | G68: =(F68-m_func(B68))*(F68-m_func(B68))/(C68*d_func(B68)*d_func(B68)+rr) -> 2.90923456 | H68: =C68*d_func(B68)/(C68*d_func(B68)*d_func(B68)+rr) -> 0.4142135624 | I68: =B68+H68*(F68-m_func(B68)) -> 22.63042812 | J68: 0.2071067812 | K68: =(E68-I68)*(E68-I68)/J68 -> 0.5040956535
A69: 68 | B69: 22.73042812 | C69: 1.207106781 | D69: 0.2288940415 | E69: 23.25607015 | F69: 52.76202752 | G69: 0.9085451636 | H69: 0.4142135624 | I69: 23.68360447 | J69: 0.2071067812 | K69: 0.882566921
A70: 69 | B70: 23.78360447 | C70: 1.207106781 | D70: 1.146788024 | E70: 22.60704355 | F70: 50.81037965 | G70: 0.5295509596 | H70: 0.4142135624 | I70: 23.05590195 | J70: 0.2071067812 | K70: 0.9728018641
A71: 70 | B71: 23.15590195 | C71: 1.207106781 | D71: 0.5237294894 | E71: 23.95101038 | F71: 51.67611723 | G71: 0.02277187282 | H71: 0.4142135624 | I71: 23.30680547 | J71: 0.2071067812 | K71: 2.003797094
A72: 71 | B72: 23.40680547 | C72: 1.207106781 | D72: 2.098477775 | E72: 24.99837286 | F72: 56.21120104 | G72: 3.318013281 | H72: 0.4142135624 | I72: 25.22834693 | J72: 0.2071067812 | K72: 0.2553662029
A73: 72 | B73: 25.32834693 | C73: 1.207106781 | D73: 2.875742835 | E73: 23.46519673 | F73: 51.90601065 | G73: 2.413622787 | H73: 0.4142135624 | I73: 23.77476308 | J73: 0.2071067812 | K73: 0.462714569
A74: 73 | B74: 23.87476308 | C74: 1.207106781 | D74: 0.02976211628 | E74: 24.06430477 | F74: 51.80410857 | G74: 0.1533543089 | H74: 0.4142135624 | I74: 23.48315829 | J74: 0.2071067812 | K74: 1.63071062
A75: 74 | B75: 23.58315829 | C75: 1.207106781 | D75: 0.6042183501 | E75: 22.72913483 | F75: 51.06995981 | G75: 0.2062302832 | H75: 0.4142135624 | I75: 23.12903245 | J75: 0.2071067812 | K75: 0.7721528976
A76: 75 | B76: 23.22903245 | C76: 1.207106781 | D76: 0.1929902143 | E76: 22.74637336 | F76: 51.31169492 | G76: 0.003675805991 | H76: 0.4142135624 | I76: 23.16840402 | J76: 0.2071067812 | K76: 0.8599905805
A77: 76 | B77: 23.26840402 | C77: 1.207106781 | D77: 0.1993724492 | E77: 23.75897903 | F77: 52.0871678 | G77: 0.05196871431 | H77: 0.4142135624 | I77: 23.4963705 | J77: 0.2071067812 | K77: 0.3329839753
A78: 77 | B78: 23.5963705 | C78: 1.207106781 | D78: 0.02847900642 | E78: 23.7817814 | F78: 54.08626792 | G78: 0.6151649731 | H78: 0.4142135624 | I78: 24.38069503 | J78: 0.2071067812 | K78: 1.731944932
A79: 78 | B79: 24.48069503 | C79: 1.207106781 | D79: 1.770472751 | E79: 23.0187957 | F79: 52.09312926 | G79: 0.5988576938 | H79: 0.4142135624 | I79: 23.70683607 | J79: 0.2071067812 | K79: 2.285775244
A80: 79 | B80: 23.80683607 | C80: 1.207106781 | D80: 0.001758428522 | E80: 23.76076426 | F80: 51.57299671 | G80: 0.1858143384 | H80: 0.4142135624 | I80: 23.37577419 | J80: 0.2071067812 | K80: 0.7156566942
A81: 80 | B81: 23.47577419 | C81: 1.207106781 | D81: 0.09131029945 | E81: 23.14377829 | F81: 51.16548413 | G81: 0.1060143676 | H81: 0.4142135624 | I81: 23.15017572 | J81: 0.2071067812 | K81: 0.0001976135716
A82: 81 | B82: 23.25017572 | C82: 1.207106781 | D82: 0.1740598492 | E82: 23.70855201 | F82: 51.76677961 | G82: 0.01217892401 | H82: 0.4142135624 | I82: 23.36053388 | J82: 0.2071067812 | K82: 0.5848027636
A83: 82 | B83: 23.46053388 | C83: 1.207106781 | D83: 0.3076637772 | E83: 22.85112184 | F83: 51.76720774 | G83: 0.004061628561 | H83: 0.4142135624 | I83: 23.39680297 | J83: 0.2071067812 | K83: 1.437750586
A84: 83 | B84: 23.49680297 | C84: 1.207106781 | D84: 0.2123495836 | E84: 24.00309204 | F84: 52.74852296 | G84: 0.09777932902 | H84: 0.4142135624 | I84: 23.80949984 | J84: 0.2071067812 | K84: 0.1809595119
A85: 84 | B85: 23.90949984 | C85: 1.207106781 | D85: 0.4516766606 | E85: 24.64789131 | F85: 53.66013809 | G85: 0.1213901837 | H85: 0.4142135624 | I85: 24.25791078 | J85: 0.2071067812 | K85: 0.7343304292
A86: 85 | B86: 24.35791078 | C86: 1.207106781 | D86: 0.2883296115 | E86: 23.7679577 | F86: 51.40502202 | G86: 0.9161638979 | H86: 0.4142135624 | I86: 23.40074627 | J86: 0.2071067812 | K86: 0.6510855783
A87: 86 | B87: 23.50074627 | C87: 1.207106781 | D87: 2.184422228 | E87: 21.87691411 | F87: 49.5846593 | G87: 1.002171388 | H87: 0.4142135624 | I87: 22.49966116 | J87: 0.2071067812 | K87: 1.872531127
A88: 87 | B88: 22.59966116 | C88: 1.207106781 | D88: 0.02747807399 | E88: 22.41753766 | F88: 49.72369455 | G88: 0.03881352204 | H88: 0.4142135624 | I88: 22.40264969 | J88: 0.2071067812 | K88: 0.001070229763
A89: 88 | B89: 22.50264969 | C89: 1.207106781 | D89: 0.1168836584 | E89: 22.12702879 | F89: 48.81091351 | G89: 0.2447585887 | H89: 0.4142135624 | I89: 22.00791886 | J89: 0.2071067812 | K89: 0.06850174221
A90: 89 | B90: 22.10791886 | C90: 1.207106781 | D90: 0.04438588611 | E90: 22.33938917 | F90: 49.38872381 | G90: 0.005128244352 | H90: 0.4142135624 | I90: 22.17953062 | J90: 0.2071067812 | K90: 0.1233892741
A91: 90 | B91: 22.27953062 | C91: 1.207106781 | D91: 1.981145445 | E91: 20.73309792 | F91: 44.96637725 | G91: 3.618943137 | H91: 0.4142135624 | I91: 20.37717862 | J91: 0.2071067812 | K91: 0.6116581366
A92: 91 | B92: 20.47717862 | C92: 1.207106781 | D92: 0.04221237984 | E92: 20.25144681 | F92: 44.65510134 | G92: 0.289626322 | H92: 0.4142135624 | I92: 19.9390092 | J92: 0.2071067812 | K92: 0.47133782
A93: 92 | B93: 20.0390092 | C93: 1.207106781 | D93: 1.557188553 | E93: 21.41002812 | F93: 46.68757992 | G93: 0.4444918335 | H93: 0.4142135624 | I93: 20.70571141 | J93: 0.2071067812 | K93: 2.395199327
A94: 93 | B94: 20.80571141 | C94: 1.207106781 | D94: 0.7703431877 | E94: 21.77001763 | F94: 47.13440339 | G94: 0.04692666862 | H94: 0.4142135624 | I94: 21.02233705 | J94: 0.2071067812 | K94: 2.699217495
A95: 94 | B95: 21.12233705 | C95: 1.207106781 | D95: 0.08339425688 | E95: 20.80505835 | F95: 46.26002315 | G95: 0.1663463379 | H95: 0.4142135624 | I95: 20.71448127 | J95: 0.2071067812 | K95: 0.039613419
A96: 95 | B96: 20.81448127 | C96: 1.207106781 | D96: 0.04763550289 | E96: 21.05427522 | F96: 47.02426876 | G96: 0.0268111793 | H96: 0.4142135624 | I96: 20.97822247 | J96: 0.2071067812 | K96: 0.02792772585
A97: 96 | B97: 21.07822247 | C97: 1.207106781 | D97: 3.965258723 | E97: 18.89041747 | F97: 42.25886208 | G97: 4.115401529 | H97: 0.4142135624 | I97: 19.04957722 | J97: 0.2071067812 | K97: 0.1223128757
A98: 97 | B98: 19.14957722 | C98: 1.207106781 | D98: 0.009018612745 | E98: 19.04523918 | F98: 42.11100786 | G98: 0.2422081104 | H98: 0.4142135624 | I98: 18.65743079 | J98: 0.2071067812 | K98: 0.7261729455
A99: 98 | B99: 18.75743079 | C99: 1.207106781 | D99: 2.80950231 | E99: 20.59899787 | F99: 45.81172811 | G99: 1.864882003 | H99: 0.4142135624 | I99: 20.12303762 | J99: 0.2071067812 | K99: 1.093822988
A100: 99 | B100: 20.22303762 | C100: 1.207106781 | D100: 2.776598697 | E100: 22.05378914 | F100: 49.28463846 | G100: 2.528052132 | H100: 0.4142135624 | I100: 21.81302257 | J100: 0.2071067812 | K100: 0.2798968757
A101: 100 | B101: 21.91302257 | C101: 1.207106781 | D101: 0.868805463 | E101: 22.93710311 | F101: 52.69336893 | G101: 2.566077102 | H101: 0.4142135624 | I101: 23.51492053 | J101: 0.2071067812 | K101: 1.61208132

Sheet KF2Sim
A1: time | C1: mu(-) | E1: sig(-) | G1: Normal | H1: X | J1: K | K1: Normal | L1: Z | N1: mu(+) | P1: sig(+) | S1: 1 | T1: 0 | U1: Identity
A2: 1 | C2: 0 | E2: 10 | F2: 0 | G2: =NORMSINV(RAND()) -> 0.08612023703 | H2: =C2+SQRT(E2)*G2 -> 0.2723361016 | J2: =MMULT(E2:F3,TRANSPOSE($S$4:$T$4))/(MMULT($S$4:$T$4,MMULT(E2:F3,TRANSPOSE($S$4:$T$4)))+$S$12) -> 0 | K2: =NORMSINV(RAND()) -> -1.160956111 | L2: =MMULT($S$4:$T$4,H2:H3)+SQRT($S$12)*K2 -> -1.160956111 | N2: =C2:C3+MMULT(J2:J3,L2-MMULT($S$4:$T$4,C2:C3)) -> 0 | P2: =MMULT($S$1:$T$2-MMULT(J2:J3,$S$4:$T$4),E2:F3) -> 10 | Q2: 0 | S2: 0 | T2: 1
C3: 0 | E3: 0 | F3: 100 | G3: =NORMSINV(RAND()) -> -0.480611807 | H3: =C3+SQRT(F3)*G3 -> -4.80611807 | J3: 0 | N3: 0 | P3: 0 | Q3: 100
S4: 0 | T4: 0 | U4: H
A5: 2 | C5: =MMULT($S$6:$T$7,N2:N3)+$S$14:$S$15 -> 1 | E5: =MMULT($S$6:$T$7,MMULT(P2:Q3,TRANSPOSE($S$6:$T$7)))+$S$9:$T$10 -> 110 | F5: 100 | G5: 0.3070938965 | H5: =MMULT($S$6:$T$7,H2:H3)+MMULT($V$9:$W$10,G5:G6)+$S$14:$S$15 -> -3.533781969 | J5: =MMULT(E5:F6,TRANSPOSE($S$4:$T$4))/(MMULT($S$4:$T$4,MMULT(E5:F6,TRANSPOSE($S$4:$T$4)))+$S$12) -> 0 | K5: =NORMSINV(RAND()) -> -0.2332553128 | L5: =MMULT($S$4:$T$4,H5:H6)+SQRT($S$12)*K5 -> -0.2332553128 | N5: =C5:C6+MMULT(J5:J6,L5-MMULT($S$4:$T$4,C5:C6)) -> 1 | P5: =MMULT($S$1:$T$2-MMULT(J5:J6,$S$4:$T$4),E5:F6) -> 110 | Q5: 100
C6: 0 | E6: 100 | F6: 101 | G6: -0.02267048245 | H6: -4.828788553 | J6: 0 | N6: 0 | P6: 100 | Q6: 101 | S6: 1 | T6: 1 | U6: phi
S7: 0 | T7: 1
A8: 3 | C8: =MMULT($S$6:$T$7,N5:N6)+$S$14:$S$15 -> 2 | E8: =MMULT($S$6:$T$7,MMULT(P5:Q6,TRANSPOSE($S$6:$T$7)))+$S$9:$T$10 -> 411 | F8: 201 | G8: -1.204861095 | H8: =MMULT($S$6:$T$7,H5:H6)+MMULT($V$9:$W$10,G8:G9)+$S$14:$S$15 -> -7.362570521 | J8: =MMULT(E8:F9,TRANSPOSE($S$4:$T$4))/(MMULT($S$4:$T$4,MMULT(E8:F9,TRANSPOSE($S$4:$T$4)))+$S$12) -> 0 | K8: =NORMSINV(RAND()) -> 0.4849905926 | L8: =MMULT($S$4:$T$4,H8:H9)+SQRT($S$12)*K8 -> 0.4849905926 | N8: =C8:C9+MMULT(J8:J9,L8-MMULT($S$4:$T$4,C8:C9)) -> 2 | P8: =MMULT($S$1:$T$2-MMULT(J8:J9,$S$4:$T$4),E8:F9) -> 411 | Q8: 201 | V8: normal1 | W8: normal2
C9: 0 | E9: 201 | F9: 102 | G9: -0.0009366947988 | H9: -4.829725247 | J9: 0 | N9: 0 | P9: 201 | Q9: 102 | S9: =V9^2+W9^2 -> 0 | T9: =V9*W9+V10*W10 -> 0 | U9: Q | V9: 0 | W9: 0 | X9: up state 1
S10: =T9 -> 0 | T10: =V10^2+W10^2 -> 1 | V10: 0 | W10: 1 | X10: up state 2
A11: 4 | C11: =MMULT($S$6:$T$7,N8:N9)+$S$14:$S$15 -> 3 | E11: =MMULT($S$6:$T$7,MMULT(P8:Q9,TRANSPOSE($S$6:$T$7)))+$S$9:$T$10 -> 915 | F11: 303 | G11: -0.0325348216 | H11: =MMULT($S$6:$T$7,H8:H9)+MMULT($V$9:W$10,G11:G12)+$S$14:$S$15 -> -11.19229577 | J11: =MMULT(E11:F12,TRANSPOSE($S$4:$T$4))/(MMULT($S$4:$T$4,MMULT(E11:F12,TRANSPOSE($S$4:$T$4)))+$S$12) -> 0 | K11: -0.8335223317 | L11: =MMULT($S$4:$T$4,H11:H12)+SQRT($S$12)*K11 -> -0.8335223317 | N11: =C11:C12+MMULT(J11:J12,L11-MMULT($S$4:$T$4,C11:C12)) -> 3 | P11: =MMULT($S$1:$T$2-MMULT(J11:J12,$S$4:$T$4),E11:F12) -> 915 | Q11: 303
C12: 0 | E12: 303 | F12: 103 | G12: -0.4209512295 | H12: -5.250676477 | J12: 0 | N12: 0 | P12: 303 | Q12: 103 | S12: 1 | U12: R
A14: 5 | C14: =MMULT($S$6:$T$7,N11:N12)+$S$14:$S$15 -> 4 | E14: =MMULT($S$6:$T$7,MMULT(P11:Q12,TRANSPOSE($S$6:$T$7)))+$S$9:$T$10 -> 1624 | F14: 406 | G14: -0.8633898109 | H14: =MMULT($S$6:$T$7,H11:H12)+MMULT($V$9:$W$10,G14:G15)+$S$14:$S$15 -> -15.44297225 | J14: =MMULT(E14:F15,TRANSPOSE($S$4:$T$4))/(MMULT($S$4:$T$4,MMULT(E14:F15,TRANSPOSE($S$4:$T$4)))+$S$12) -> 0 | K14: -0.9720590651 | L14: =MMULT($S$4:$T$4,H14:H15)+SQRT($S$12)*K14 -> -0.9720590651 | N14: =C14:C15+MMULT(J14:J15,L14-MMULT($S$4:$T$4,C14:C15)) -> 4 | P14: =MMULT($S$1:$T$2-MMULT(J14:J15,$S$4:$T$4),E14:F15) -> 1624 | Q14: 406 | S14: 1 | U14: muW
C15: 0 | E15: 406 | F15: 104 | G15: 1.505569227 | H15: -3.74510725 | J15: 0 | N15: 0 | P15: 406 | Q15: 104 | S15: 0
A17: 6 | C17: =MMULT($S$6:$T$7,N14:N15)+$S$14:$S$15 -> 5 | E17: =MMULT($S$6:$T$7,MMULT(P14:Q15,TRANSPOSE($S$6:$T$7)))+$S$9:$T$10 -> 2540 | F17: 510 | G17: -0.2553793051 | H17: =MMULT($S$6:$T$7,H14:H15)+MMULT($V$9:$W$10,G17:G18)+$S$14:$S$15 -> -18.1880795 | J17: =MMULT(E17:F18,TRANSPOSE($S$4:$T$4))/(MMULT($S$4:$T$4,MMULT(E17:F18,TRANSPOSE($S$4:$T$4)))+$S$12) -> 0 | K17: =NORMSINV(RAND()) -> -1.007614752 | L17: =MMULT($S$4:$T$4,H17:H18)+SQRT($S$12)*K17 -> -1.007614752 | N17: =C17:C18+MMULT(J17:J18,L17-MMULT($S$4:$T$4,C17:C18)) -> 5 | P17: =MMULT($S$1:$T$2-MMULT(J17:J18,$S$4:$T$4),E17:F18) -> 2540 | Q17: 510
C18: 0 | E18: 510 | F18: 105 | G18: 0.362300488 | H18: -3.382806762 | J18: 0 | N18: 0 | P18: 510 | Q18: 105

Sheet ArtillerySim
A1: Shot | B1: Gain (K) | C1: KalmanAim | D1: Dispersion(V) | E1: Miss (Z) | F1: KalmanHit? | H1: sig_disp | I1: 1 | K1: 3CALAim | L1: MissDist | M1: 3CALHit? | O1: Improve | Q1: Truth(X)
A2: 1 | B2: =1/(A2+($I$1/$I$2)^2) -> 0.9900990099 | C2: 0 | D2: =NORMINV(RAND(),0,$I$1) -> -1.172835732 | E2: =$I$4-C2-D2 -> 17.0600528 | F2: =IF(ABS(E2)<$I$3,1,0) -> 0 | H2: sig_B | I2: 10 | K2: 0 | L2: =$I$4-D2-K2 -> 17.0600528 | M2: =IF(ABS(L2)<$I$3,1,0) -> 0 | O2: =F2-M2 -> 0 | Q2: =$I$4 -> 15.88721707
A3: 2 | B3: =1/(A3+($I$1/$I$2)^2) -> 0.4975124378 | C3: =C2+B2*E2 -> 16.89114139 | D3: 1.163505941 | E3: -2.167430259 | F3: 0 | H3: R | I3: 1 | K3: 0 | L3: 14.72371113 | M3: 0 | O3: 0 | Q3: =$I$4 -> 15.88721707
A4: 3 | B4: 0.3322259136 | C4: =C3+B3*E3 -> 15.81281787 | D4: 0.2760760983 | E4: -0.2016769047 | F4: 1 | H4: TgtLoc(X) | I4: =NORMINV(RAND(),0,$I$2) -> 15.88721707 | K4: 0 | L4: 15.61114097 | M4: 0 | O4: 1 | Q4: 15.88721707
A5: 4 | B5: 0.2493765586 | C5: 15.74581558 | D5: -0.4140203496 | E5: 0.5554218371 | F5: 1 | K5: =AVERAGE($L$2:$L$4) -> 15.79830163 | L5: 0.5029357852 | M5: 1 | O5: 0 | Q5: 15.88721707
A6: 5 | B6: 0.1996007984 | C6: 15.88432477 | D6: 0.7142955672 | E6: -0.7114032659 | F6: 1 | K6: 15.79830163 | L6: -0.6253801316 | M6: 1 | O6: 0 | Q6: 15.88721707
A7: 6 | B7: 0.1663893511 | C7: 15.74232811 | D7: 1.982102581 | E7: -1.83721362 | F7: 0 | K7: 15.79830163 | L7: -1.893187145 | M7: 0 | O7: 0 | Q7: 15.88721707
A8: 7 | B8: 0.1426533524 | C8: 15.43663533 | D8: 0.08639675645 | E8: 0.3641849867 | F8: 1 | K8: 15.79830163 | L8: 0.00251867917 | M8: 1 | O8: 0 | Q8: 15.88721707
A9: 8 | B9: 0.1248439451 | C9: 15.48858753 | D9: 0.1303403121 | E9: 0.2682892218 | F9: 1 | K9: 15.79830163 | L9: -0.04142487649 | M9: 1 | O9: 0 | Q9: 15.88721707
A10: 9 | B10: 0.1109877913 | C10: 15.52208182 | D10: 0.5508563403 | E10: -0.1857210913 | F10: 1 | K10: 15.79830163 | L10: -0.4619409047 | M10: 1 | O10: 0 | Q10: 15.88721707
A11: 10 | B11: 0.0999000999 | C11: 15.50146905 | D11: -0.04495953681 | E11: 0.4307075596 | F11: 1 | K11: 15.79830163 | L11: 0.1338749724 | M11: 1 | O11: 0 | Q11: 15.88721707
M24: bu
